Workbook

Sheet LÉEME
D11: Hoja Léeme
D16: PROMUEVE – Herramienta de evaluación de impacto
D18: Introducción
D19: Esta herramienta proporciona una guía sobre los posibles impactos de los sistemas de riego con energía solar en los aspectos socioeconómicos y ambientales. Los impactos pueden considerarse positivos, neutrales o negativos. Los impactos se agrupan en las siguientes áreas temáticas: 1. Cambio de población y migración 2. Papel de la mujer 3. Grupos minoritarios e indígenas 4. Ingresos y amenidad 5. Efectos regionales en el país 6. Participación del usuario 7. Recursos naturales y el medio ambiente Al utilizar la lista de verificación, los asesores de SPIS pueden involucrarse más en la evaluación del cambio socioeconómico y ambiental y en la planificación de la mitigación de los impactos adversos. La lista de verificación permite que la experiencia especialista se use con mayor eficacia y promoverá una cooperación más estrecha entre especialistas y no especialistas en el desarrollo de proyectos sociales, económicos y ambientalmente sostenibles. La lista de verificación ya se puede utilizar durante el diseño de un sistema SPIS, así como después de que se haya instalado y utilizado el SPIS, asegurando un seguimiento continuo. La herramienta es particularmente relevante para el Módulo PROMUEVE de la caja de herramientas de SPIS.
D24: Consejos y trucos
D32: Sinopsis
D33: Esta herramienta incluye las siguientes hojas:
D35: ENTRADA - Lista de verificación | G35: Esta hoja incluye preguntas que llevan el diseñador del SPIS a evaluar y ponderar los aspectos socioeconómicos y ambientales del proyecto. Las repuestas generan gráficos que aparecen en la hoja de SALIDA.
D38: ENTRADA - Datos | G38: Esta hoja permite la entrada de datos para dar una visión general los los benificiarios del proyecto. Los valores generan gráficos que aparecen en la hoja SALIDA.
D41: SALIDO - Gráficos | G41: Esta hoja contiene gráficos, generados por las hojas de ENTRADA. Se pueden usar para la evaluación y en informes más aplios para demostrar los impactos socioeconómicos y ambientales del proyecto.
D43: Version Control | G43: Oculto. Esta hoja contiene detalles sobre las versiones y cambios realizados en cada revisión de esta herramienta.
D45: Reference | G45: Oculto. Resultados de referencia y referencias de las preguntas contenidas en estas hojas de ENTRADA.
D47: Traducción | G47: Traducción de palabras claves.
D50: Acerca de
D51: Publicado por: | F51: GIZ & FAO
D52: Responsable: | F52: Proyecto de la GIZ Sustainable Energy for Food - Powering Agriculture
D54: Contacto: | F54: Powering.Agriculture@giz.de
D55: Enlace descarga: | F55: https://energypedia.info/wiki/Toolbox_on_SPIS
D56: Acerca de | F56: Powering Agriculture: An Energy Grand Challenge for Development. Disponible en:
F58: https://poweringag.org
D59: Versión | F59: 1.2 (Julio 2018)
D61: La publicación de la Caja de herramientas de sistemas de riego solar ha sido posible gracias al apoyo brindado por la iniciativa mundial Powering Agriculture: An Energy Grand Challenge for Development (PAEGC) (Energización Rural: Un gran desafío energético para el desarrollo). En 2012, la Agencia de los Estados Unidos para el Desarrollo Internacional (USAID), la Agencia Sueca de Cooperación Internacional para el Desarrollo (Sida), el Ministerio Federal de Cooperación Económica y Desarrollo (BMZ) de Alemania, la empresa de energía Duke Energy Corporation y la Corporación de Inversiones Privadas en el Extranjero (OPIC) juntaron recursos para crear la iniciativa PAEGC. El objetivo de PAEGC es fomentar nuevos enfoques sostenibles con el fin de acelerar el desarrollo y asegurar el establecimiento de energías limpias que incrementen la productividad y/o el valor de la agricultura en países en desarrollo y regiones emergentes sin acceso a fuentes de energía confiables, asequibles y limpias. Las denominaciones empleadas y la presentación del material en este producto informativo no implican juicio alguno por parte de la Deutsche Gesellschaft für Internationale Zusammenarbeit (GIZ) GmbH, la Organización de las Naciones Unidas para la Alimentación y la Agricultura (FAO), o los socios fundadores de la iniciativa PAEGC, sobre la condición jurídica o el grado de desarrollo de ninguno de los países, territorios, ciudades o zonas citados o de sus autoridades, ni respecto de la delimitación de sus fronteras o límites. La mención de empresas o productos de fabricantes en particular, estén o no patentados, no implica que la GIZ, la FAO o alguno de los socios fundadores de la iniciativa PAEGC los aprueben o recomienden, dándoles preferencia sobre otros de naturaleza similar que no se mencionan. Las opiniones expresadas en este producto informativo son las de su(s) autor(es) o autora(s), y no reflejan necesariamente los puntos de vista o las políticas de la GIZ, la FAO o ninguno de los socios fundadores de la iniciativa PAEGC. La GIZ, la FAO y los socios fundadores de la iniciativa PAEGC fomentan la utilización, la reproducción y la difusión del material presentado en este producto informativo. A menos que se indique lo contrario, el material puede ser copiado, descargado e impreso con fines de estudio privado, enseñanza e investigación científica, o para su utilización en productos o servicios no comerciales, siempre que se otorgue a la GIZ y la FAO el debido reconocimiento como fuentes y como titulares de los derechos de autor.
D90: © GIZ and FAO, 2018

Sheet ENTRADA - Lista de verificación
B1: PROMUEVE – Herramienta de evaluación de impacto
A2: IMPACTOS SOCIOECONÓMICOS Y AMBIENTALES
A3: Esta lista de verificación es para evaluar aproximadamente los impactos socioeconómicos y ambientales de los sistemas de riego solar.
B4: 1 | C4: =B15 -> Cambio de población y migración | D4: =SUM(H16:H22) -> 52.5 | E4: Nombre del proyecto: | G4: sample
B5: 2 | C5: =B23 -> Papel de la mujer | D5: =SUM(H24:H37) -> 105 | E5: Ubicación del proyecto:
B6: 3 | C6: =B38 -> Grupos minoritarios e indígenas | D6: =SUM(H39:H44) -> 45 | E6: Nombre del usario:
B7: 4 | C7: =B45 -> Ingresos y servicios | D7: =SUM(H46:H52) -> 52.5 | E7: Fecha de la evaluación de impacto
B8: 5 | C8: =B53 -> Efectos regionales en el país | D8: =SUM(H54:H62) -> 67.5 | E8: Duración del proyecto (años)
B9: 6 | C9: =B63 -> Participación del usario | D9: =SUM(H64:H68) -> 37.5 | E9: Vida útil del activo (años)
B10: 7 | C10: =B69 -> Recursos naturales y medio ambiente | D10: =SUM(H70:H92) -> 172.5 | E10: Notas:
C11: RESULTADO | D11: =SUM(D4+D7+D5+D6+D10+D8+D9) -> 532.5
A14: Ref # | B14: Pregunta | D14: Yes, No or N/A | E14: Ponderación (¿Qué importante es esto para el proyecto?) | F14: ¿Cuál es el impacto del proyecto? | G14: Commentarios
A15: 1 | B15: Cambio de población y migración
A16: 1a | B16: ¿Se han considerado los cambios en el tamaño / densidad de la población y la composición demográfica / étnica en la planificación del proyecto? | D16: Yes | E16: High | F16: Positive impact is very likely | H16: =IFERROR(IF(D16="Yes",(VLOOKUP(E16,Reference!$A$9:$B$11,2,FALSE)*VLOOKUP(F16,Reference!$A$2:$B$7,2,FALSE)*VLOOKUP(D16,Reference!$A$14:$B$15,2,FALSE)),(VLOOKUP(E16,Reference!$A$9:$B$11,2,FALSE)*VLOOKUP(F16,Reference!$A$2:$C$7,3,FALSE)*VLOOKUP(D16,Reference!$A$14:$B$15,2,FALSE)))," ") -> 7.5
A17: 1b | B17: ¿El proyecto está causando cambios demográficos significativos en el área o en proximidad del proyecto que podrían afectar la armonía social? | D17: Yes | E17: High | F17: Positive impact is very likely | H17: =IFERROR(IF(D17="Yes",(VLOOKUP(E17,Reference!$A$9:$B$11,2,FALSE)*VLOOKUP(F17,Reference!$A$2:$B$7,2,FALSE)*VLOOKUP(D17,Reference!$A$14:$B$15,2,FALSE)),(VLOOKUP(E17,Reference!$A$9:$B$11,2,FALSE)*VLOOKUP(F17,Reference!$A$2:$C$7,3,FALSE)*VLOOKUP(D17,Reference!$A$14:$B$15,2,FALSE)))," ") -> 7.5
A18: 1c | B18: ¿El proyecto está evitando el desplazamiento físico y económico de personas? | D18: Yes | E18: High | F18: Positive impact is very likely | H18: =IFERROR(IF(D18="Yes",(VLOOKUP(E18,Reference!$A$9:$B$11,2,FALSE)*VLOOKUP(F18,Reference!$A$2:$B$7,2,FALSE)*VLOOKUP(D18,Reference!$A$14:$B$15,2,FALSE)),(VLOOKUP(E18,Reference!$A$9:$B$11,2,FALSE)*VLOOKUP(F18,Reference!$A$2:$C$7,3,FALSE)*VLOOKUP(D18,Reference!$A$14:$B$15,2,FALSE)))," ") -> 7.5
A19: 1d | B19: ¿Se ha considerado la migración humana desde la ubicación del proyecto (por ejemplo éxodo rural) y hacia ella (por ejemplo, la demanda (estacional) de mano de obra agrícola)? | D19: Yes | E19: High | F19: Positive impact is very likely | H19: =IFERROR(IF(D19="Yes",(VLOOKUP(E19,Reference!$A$9:$B$11,2,FALSE)*VLOOKUP(F19,Reference!$A$2:$B$7,2,FALSE)*VLOOKUP(D19,Reference!$A$14:$B$15,2,FALSE)),(VLOOKUP(E19,Reference!$A$9:$B$11,2,FALSE)*VLOOKUP(F19,Reference!$A$2:$C$7,3,FALSE)*VLOOKUP(D19,Reference!$A$14:$B$15,2,FALSE)))," ") -> 7.5
A20: 1e | B20: ¿Asegura el proyecto un empleo rural digno, promoviendo más y mejores oportunidades de empleo y condiciones de trabajo, y evitando prácticas, que podrían aumentar la vulnerabilidad de los trabajadores? | D20: Yes | E20: High | F20: Positive impact is very likely | H20: =IFERROR(IF(D20="Yes",(VLOOKUP(E20,Reference!$A$9:$B$11,2,FALSE)*VLOOKUP(F20,Reference!$A$2:$B$7,2,FALSE)*VLOOKUP(D20,Reference!$A$14:$B$15,2,FALSE)),(VLOOKUP(E20,Reference!$A$9:$B$11,2,FALSE)*VLOOKUP(F20,Reference!$A$2:$C$7,3,FALSE)*VLOOKUP(D20,Reference!$A$14:$B$15,2,FALSE)))," ") -> 7.5
A21: 1f | B21: ¿El proyecto respeta los principios y derechos fundamentales en el trabajo y prohíbe el trabajo infantil? | D21: Yes | E21: High | F21: Positive impact is very likely | H21: =IFERROR(IF(D21="Yes",(VLOOKUP(E21,Reference!$A$9:$B$11,2,FALSE)*VLOOKUP(F21,Reference!$A$2:$B$7,2,FALSE)*VLOOKUP(D21,Reference!$A$14:$B$15,2,FALSE)),(VLOOKUP(E21,Reference!$A$9:$B$11,2,FALSE)*VLOOKUP(F21,Reference!$A$2:$C$7,3,FALSE)*VLOOKUP(D21,Reference!$A$14:$B$15,2,FALSE)))," ") -> 7.5
A22: 1g | B22: ¿Se han tomado medidas adecuadas para cualquier afluencia de población migratoria o temporal para evitar entre los grupos permanentes y temporales la privación social, las dificultades o los conflictos? | D22: Yes | E22: High | F22: Positive impact is very likely | H22: =IFERROR(IF(D22="Yes",(VLOOKUP(E22,Reference!$A$9:$B$11,2,FALSE)*VLOOKUP(F22,Reference!$A$2:$B$7,2,FALSE)*VLOOKUP(D22,Reference!$A$14:$B$15,2,FALSE)),(VLOOKUP(E22,Reference!$A$9:$B$11,2,FALSE)*VLOOKUP(F22,Reference!$A$2:$C$7,3,FALSE)*VLOOKUP(D22,Reference!$A$14:$B$15,2,FALSE)))," ") -> 7.5
A23: 2 | B23: Papel de la mujer | C23: para preguntas en más profundidad y aspectos a considerar, consulte: | F23: http://www.fao.org/docrep/017/i3173e/i3173e.pdf
A24: 2a | B24: ¿Se han tenido en cuenta las necesidades, las prioridades y las limitaciones de los dos, mujeres y hombres, durante el diseño del proyecto? | D24: Yes | E24: High | F24: Positive impact is very likely | H24: =IFERROR(IF(D24="Yes",(VLOOKUP(E24,Reference!$A$9:$B$11,2,FALSE)*VLOOKUP(F24,Reference!$A$2:$B$7,2,FALSE)*VLOOKUP(D24,Reference!$A$14:$B$15,2,FALSE)),(VLOOKUP(E24,Reference!$A$9:$B$11,2,FALSE)*VLOOKUP(F24,Reference!$A$2:$C$7,3,FALSE)*VLOOKUP(D24,Reference!$A$14:$B$15,2,FALSE)))," ") -> 7.5
A25: 2b | B25: ¿El proyecto cambia positivamente el estado y el papel de las mujeres en relación con la posición social? | D25: Yes | E25: High | F25: Positive impact is very likely | H25: =IFERROR(IF(D25="Yes",(VLOOKUP(E25,Reference!$A$9:$B$11,2,FALSE)*VLOOKUP(F25,Reference!$A$2:$B$7,2,FALSE)*VLOOKUP(D25,Reference!$A$14:$B$15,2,FALSE)),(VLOOKUP(E25,Reference!$A$9:$B$11,2,FALSE)*VLOOKUP(F25,Reference!$A$2:$C$7,3,FALSE)*VLOOKUP(D25,Reference!$A$14:$B$15,2,FALSE)))," ") -> 7.5
A26: 2c | B26: ¿El proyecto cambia positivamente el estado y el papel de las mujeres en relación con la carga de trabajo? | D26: Yes | E26: High | F26: Positive impact is very likely | H26: =IFERROR(IF(D26="Yes",(VLOOKUP(E26,Reference!$A$9:$B$11,2,FALSE)*VLOOKUP(F26,Reference!$A$2:$B$7,2,FALSE)*VLOOKUP(D26,Reference!$A$14:$B$15,2,FALSE)),(VLOOKUP(E26,Reference!$A$9:$B$11,2,FALSE)*VLOOKUP(F26,Reference!$A$2:$C$7,3,FALSE)*VLOOKUP(D26,Reference!$A$14:$B$15,2,FALSE)))," ") -> 7.5
A27: 2d | B27: ¿El proyecto cambia positivamente el estado y el papel de las mujeres en relación con el acceso a los mercados, los ingresos y las finanzas? | D27: Yes | E27: High | F27: Positive impact is very likely | H27: =IFERROR(IF(D27="Yes",(VLOOKUP(E27,Reference!$A$9:$B$11,2,FALSE)*VLOOKUP(F27,Reference!$A$2:$B$7,2,FALSE)*VLOOKUP(D27,Reference!$A$14:$B$15,2,FALSE)),(VLOOKUP(E27,Reference!$A$9:$B$11,2,FALSE)*VLOOKUP(F27,Reference!$A$2:$C$7,3,FALSE)*VLOOKUP(D27,Reference!$A$14:$B$15,2,FALSE)))," ") -> 7.5
A28: 2e | B28: ¿El proyecto cambia positivamente el estado y el papel de las mujeres en relación con el patrimonio y la herencia? | D28: Yes | E28: High | F28: Positive impact is very likely | H28: =IFERROR(IF(D28="Yes",(VLOOKUP(E28,Reference!$A$9:$B$11,2,FALSE)*VLOOKUP(F28,Reference!$A$2:$B$7,2,FALSE)*VLOOKUP(D28,Reference!$A$14:$B$15,2,FALSE)),(VLOOKUP(E28,Reference!$A$9:$B$11,2,FALSE)*VLOOKUP(F28,Reference!$A$2:$C$7,3,FALSE)*VLOOKUP(D28,Reference!$A$14:$B$15,2,FALSE)))," ") -> 7.5
A29: 2f | B29: ¿El proyecto cambia positivamente el estado y el papel de las mujeres en relación con los derechos matrimoniales? | D29: Yes | E29: High | F29: Positive impact is very likely | H29: =IFERROR(IF(D29="Yes",(VLOOKUP(E29,Reference!$A$9:$B$11,2,FALSE)*VLOOKUP(F29,Reference!$A$2:$B$7,2,FALSE)*VLOOKUP(D29,Reference!$A$14:$B$15,2,FALSE)),(VLOOKUP(E29,Reference!$A$9:$B$11,2,FALSE)*VLOOKUP(F29,Reference!$A$2:$C$7,3,FALSE)*VLOOKUP(D29,Reference!$A$14:$B$15,2,FALSE)))," ") -> 7.5
A30: 2g | B30: ¿El proyecto promueve a las mujeres y hombres el acceso equitativo a y el control de los recursos y servicios productivos? | D30: Yes | E30: High | F30: Positive impact is very likely | H30: =IFERROR(IF(D30="Yes",(VLOOKUP(E30,Reference!$A$9:$B$11,2,FALSE)*VLOOKUP(F30,Reference!$A$2:$B$7,2,FALSE)*VLOOKUP(D30,Reference!$A$14:$B$15,2,FALSE)),(VLOOKUP(E30,Reference!$A$9:$B$11,2,FALSE)*VLOOKUP(F30,Reference!$A$2:$C$7,3,FALSE)*VLOOKUP(D30,Reference!$A$14:$B$15,2,FALSE)))," ") -> 7.5
A31: 2h | B31: ¿El proyecto fomenta la participación equitativa de hombres y mujeres en las instituciones y en los procesos decisorios? | D31: Yes | E31: High | F31: Positive impact is very likely | H31: =IFERROR(IF(D31="Yes",(VLOOKUP(E31,Reference!$A$9:$B$11,2,FALSE)*VLOOKUP(F31,Reference!$A$2:$B$7,2,FALSE)*VLOOKUP(D31,Reference!$A$14:$B$15,2,FALSE)),(VLOOKUP(E31,Reference!$A$9:$B$11,2,FALSE)*VLOOKUP(F31,Reference!$A$2:$C$7,3,FALSE)*VLOOKUP(D31,Reference!$A$14:$B$15,2,FALSE)))," ") -> 7.5
A32: 2i | B32: ¿Permite el proyecto reducir la carga de tiempo para las mujeres y los grupos minoritarios, lo que les permite dedicarse a otras actividades, como la educación y el ocio? | D32: Yes | E32: High | F32: Positive impact is very likely | H32: =IFERROR(IF(D32="Yes",(VLOOKUP(E32,Reference!$A$9:$B$11,2,FALSE)*VLOOKUP(F32,Reference!$A$2:$B$7,2,FALSE)*VLOOKUP(D32,Reference!$A$14:$B$15,2,FALSE)),(VLOOKUP(E32,Reference!$A$9:$B$11,2,FALSE)*VLOOKUP(F32,Reference!$A$2:$C$7,3,FALSE)*VLOOKUP(D32,Reference!$A$14:$B$15,2,FALSE)))," ") -> 7.5
A33: 2j | B33: ¿El proyecto establece mecanismos de resolución de disputas que tengan un equilibrio de género? | D33: Yes | E33: High | F33: Positive impact is very likely | H33: =IFERROR(IF(D33="Yes",(VLOOKUP(E33,Reference!$A$9:$B$11,2,FALSE)*VLOOKUP(F33,Reference!$A$2:$B$7,2,FALSE)*VLOOKUP(D33,Reference!$A$14:$B$15,2,FALSE)),(VLOOKUP(E33,Reference!$A$9:$B$11,2,FALSE)*VLOOKUP(F33,Reference!$A$2:$C$7,3,FALSE)*VLOOKUP(D33,Reference!$A$14:$B$15,2,FALSE)))," ") -> 7.5
A34: 2k | B34: ¿Se han considerado las consecuencias de cambiar el uso de una fuente de agua? | D34: Yes | E34: High | F34: Positive impact is very likely | H34: =IFERROR(IF(D34="Yes",(VLOOKUP(E34,Reference!$A$9:$B$11,2,FALSE)*VLOOKUP(F34,Reference!$A$2:$B$7,2,FALSE)*VLOOKUP(D34,Reference!$A$14:$B$15,2,FALSE)),(VLOOKUP(E34,Reference!$A$9:$B$11,2,FALSE)*VLOOKUP(F34,Reference!$A$2:$C$7,3,FALSE)*VLOOKUP(D34,Reference!$A$14:$B$15,2,FALSE)))," ") -> 7.5
A35: 2l | B35: ¿El proyecto tendrá impactos diferenciados de género por los agricultores río abajo o más allá de los límites del proyecto? | D35: Yes | E35: High | F35: Positive impact is very likely | H35: =IFERROR(IF(D35="Yes",(VLOOKUP(E35,Reference!$A$9:$B$11,2,FALSE)*VLOOKUP(F35,Reference!$A$2:$B$7,2,FALSE)*VLOOKUP(D35,Reference!$A$14:$B$15,2,FALSE)),(VLOOKUP(E35,Reference!$A$9:$B$11,2,FALSE)*VLOOKUP(F35,Reference!$A$2:$C$7,3,FALSE)*VLOOKUP(D35,Reference!$A$14:$B$15,2,FALSE)))," ") -> 7.5
A36: 2m | B36: ¿Afectarán el derecho de un sistema de riego y el derecho a regar el registro de la tierra o el estado de la propiedad de la tierra? | D36: Yes | E36: High | F36: Positive impact is very likely | H36: =IFERROR(IF(D36="Yes",(VLOOKUP(E36,Reference!$A$9:$B$11,2,FALSE)*VLOOKUP(F36,Reference!$A$2:$B$7,2,FALSE)*VLOOKUP(D36,Reference!$A$14:$B$15,2,FALSE)),(VLOOKUP(E36,Reference!$A$9:$B$11,2,FALSE)*VLOOKUP(F36,Reference!$A$2:$C$7,3,FALSE)*VLOOKUP(D36,Reference!$A$14:$B$15,2,FALSE)))," ") -> 7.5
A37: 2n | B37: ¿El proyecto ofrece oportunidades iguales para la capacitación de mujeres y hombres? | D37: Yes | E37: High | F37: Positive impact is very likely | H37: =IFERROR(IF(D37="Yes",(VLOOKUP(E37,Reference!$A$9:$B$11,2,FALSE)*VLOOKUP(F37,Reference!$A$2:$B$7,2,FALSE)*VLOOKUP(D37,Reference!$A$14:$B$15,2,FALSE)),(VLOOKUP(E37,Reference!$A$9:$B$11,2,FALSE)*VLOOKUP(F37,Reference!$A$2:$C$7,3,FALSE)*VLOOKUP(D37,Reference!$A$14:$B$15,2,FALSE)))," ") -> 7.5
A38: 3 | B38: Grupos minoritarios e indígenas
A39: 3a | B39: ¿El proyecto está causando cambios positivos en el estilo de vida, los medios de subsistencia o la habitación de cualquier grupo social (especialmente grupos minoritarios)? | D39: Yes | E39: High | F39: Positive impact is very likely | H39: =IFERROR(IF(D39="Yes",(VLOOKUP(E39,Reference!$A$9:$B$11,2,FALSE)*VLOOKUP(F39,Reference!$A$2:$B$7,2,FALSE)*VLOOKUP(D39,Reference!$A$14:$B$15,2,FALSE)),(VLOOKUP(E39,Reference!$A$9:$B$11,2,FALSE)*VLOOKUP(F39,Reference!$A$2:$C$7,3,FALSE)*VLOOKUP(D39,Reference!$A$14:$B$15,2,FALSE)))," ") -> 7.5
A40: 3b | B40: ¿El proyecto conduce a cambios positivos en el comportamiento tradicional, la organización social o las prácticas culturales y religiosas (especialmente los grupos minoritarios)? | D40: Yes | E40: High | F40: Positive impact is very likely | H40: =IFERROR(IF(D40="Yes",(VLOOKUP(E40,Reference!$A$9:$B$11,2,FALSE)*VLOOKUP(F40,Reference!$A$2:$B$7,2,FALSE)*VLOOKUP(D40,Reference!$A$14:$B$15,2,FALSE)),(VLOOKUP(E40,Reference!$A$9:$B$11,2,FALSE)*VLOOKUP(F40,Reference!$A$2:$C$7,3,FALSE)*VLOOKUP(D40,Reference!$A$14:$B$15,2,FALSE)))," ") -> 7.5
A41: 3c | B41: ¿El proyecto aborda oportunidades iguales para grupos minoritarios? | D41: Yes | E41: High | F41: Positive impact is very likely | H41: =IFERROR(IF(D41="Yes",(VLOOKUP(E41,Reference!$A$9:$B$11,2,FALSE)*VLOOKUP(F41,Reference!$A$2:$B$7,2,FALSE)*VLOOKUP(D41,Reference!$A$14:$B$15,2,FALSE)),(VLOOKUP(E41,Reference!$A$9:$B$11,2,FALSE)*VLOOKUP(F41,Reference!$A$2:$C$7,3,FALSE)*VLOOKUP(D41,Reference!$A$14:$B$15,2,FALSE)))," ") -> 7.5
A42: 3a | B42: ¿Pueden las actividades tener efectos adversos sobre los derechos de los pueblos indígenas, las tierras, los recursos naturales, los territorios, los medios de subsistencia, el conocimiento, el tejido social, las tradiciones, los sistemas de gobierno y la cultura o el patrimonio (tangible e intangible)? | D42: Yes | E42: High | F42: Positive impact is very likely | H42: =IFERROR(IF(D42="Yes",(VLOOKUP(E42,Reference!$A$9:$B$11,2,FALSE)*VLOOKUP(F42,Reference!$A$2:$B$7,2,FALSE)*VLOOKUP(D42,Reference!$A$14:$B$15,2,FALSE)),(VLOOKUP(E42,Reference!$A$9:$B$11,2,FALSE)*VLOOKUP(F42,Reference!$A$2:$C$7,3,FALSE)*VLOOKUP(D42,Reference!$A$14:$B$15,2,FALSE)))," ") -> 7.5
A43: 3b | B43: ¿Es probable que las comunidades indígenas fuera del área del proyecto se vean afectadas por el proyecto? | D43: Yes | E43: High | F43: Positive impact is very likely | H43: =IFERROR(IF(D43="Yes",(VLOOKUP(E43,Reference!$A$9:$B$11,2,FALSE)*VLOOKUP(F43,Reference!$A$2:$B$7,2,FALSE)*VLOOKUP(D43,Reference!$A$14:$B$15,2,FALSE)),(VLOOKUP(E43,Reference!$A$9:$B$11,2,FALSE)*VLOOKUP(F43,Reference!$A$2:$C$7,3,FALSE)*VLOOKUP(D43,Reference!$A$14:$B$15,2,FALSE)))," ") -> 7.5
A44: 3c | B44: ¿El proyecto está diseñado para ser sensible a los problemas del patrimonio cultural? | D44: Yes | E44: High | F44: Positive impact is very likely | H44: =IFERROR(IF(D44="Yes",(VLOOKUP(E44,Reference!$A$9:$B$11,2,FALSE)*VLOOKUP(F44,Reference!$A$2:$B$7,2,FALSE)*VLOOKUP(D44,Reference!$A$14:$B$15,2,FALSE)),(VLOOKUP(E44,Reference!$A$9:$B$11,2,FALSE)*VLOOKUP(F44,Reference!$A$2:$C$7,3,FALSE)*VLOOKUP(D44,Reference!$A$14:$B$15,2,FALSE)))," ") -> 7.5
A45: 4 | B45: Ingresos y servicios
A46: 4a | B46: ¿El Proyecto está introduciendo cambios económicos / políticos significativos que pueden aumentar o disminuir la armonía social y el bienestar individual? | D46: Yes | E46: High | F46: Positive impact is very likely | H46: =IFERROR(IF(D46="Yes",(VLOOKUP(E46,Reference!$A$9:$B$11,2,FALSE)*VLOOKUP(F46,Reference!$A$2:$B$7,2,FALSE)*VLOOKUP(D46,Reference!$A$14:$B$15,2,FALSE)),(VLOOKUP(E46,Reference!$A$9:$B$11,2,FALSE)*VLOOKUP(F46,Reference!$A$2:$C$7,3,FALSE)*VLOOKUP(D46,Reference!$A$14:$B$15,2,FALSE)))," ") -> 7.5
A47: 4b | B47: ¿Crea el proyecto oportunidades comerciales para las comunidades locales (por ejemplo, diversificación de la producción, disposiciones de servicios técnicos, nuevos mercados)? | D47: Yes | E47: High | F47: Positive impact is very likely | H47: =IFERROR(IF(D47="Yes",(VLOOKUP(E47,Reference!$A$9:$B$11,2,FALSE)*VLOOKUP(F47,Reference!$A$2:$B$7,2,FALSE)*VLOOKUP(D47,Reference!$A$14:$B$15,2,FALSE)),(VLOOKUP(E47,Reference!$A$9:$B$11,2,FALSE)*VLOOKUP(F47,Reference!$A$2:$C$7,3,FALSE)*VLOOKUP(D47,Reference!$A$14:$B$15,2,FALSE)))," ") -> 7.5
A48: 4c | B48: ¿Influye el proyecto en la creación de un sector agrícola competitivo (por ejemplo, mejor acceso al mercado, productos de mayor calidad y mayores rendimientos)? | D48: Yes | E48: High | F48: Positive impact is very likely | H48: =IFERROR(IF(D48="Yes",(VLOOKUP(E48,Reference!$A$9:$B$11,2,FALSE)*VLOOKUP(F48,Reference!$A$2:$B$7,2,FALSE)*VLOOKUP(D48,Reference!$A$14:$B$15,2,FALSE)),(VLOOKUP(E48,Reference!$A$9:$B$11,2,FALSE)*VLOOKUP(F48,Reference!$A$2:$C$7,3,FALSE)*VLOOKUP(D48,Reference!$A$14:$B$15,2,FALSE)))," ") -> 7.5
A49: 4d | B49: ¿Ha habido alguna mejora en el empleo y los ingresos? | D49: Yes | E49: High | F49: Positive impact is very likely | H49: =IFERROR(IF(D49="Yes",(VLOOKUP(E49,Reference!$A$9:$B$11,2,FALSE)*VLOOKUP(F49,Reference!$A$2:$B$7,2,FALSE)*VLOOKUP(D49,Reference!$A$14:$B$15,2,FALSE)),(VLOOKUP(E49,Reference!$A$9:$B$11,2,FALSE)*VLOOKUP(F49,Reference!$A$2:$C$7,3,FALSE)*VLOOKUP(D49,Reference!$A$14:$B$15,2,FALSE)))," ") -> 7.5
A50: 4e | B50: ¿Conlleva el proyecto a la creación de empleo sostenible y trabajo en relación con el mismo? | D50: Yes | E50: High | F50: Positive impact is very likely | H50: =IFERROR(IF(D50="Yes",(VLOOKUP(E50,Reference!$A$9:$B$11,2,FALSE)*VLOOKUP(F50,Reference!$A$2:$B$7,2,FALSE)*VLOOKUP(D50,Reference!$A$14:$B$15,2,FALSE)),(VLOOKUP(E50,Reference!$A$9:$B$11,2,FALSE)*VLOOKUP(F50,Reference!$A$2:$C$7,3,FALSE)*VLOOKUP(D50,Reference!$A$14:$B$15,2,FALSE)))," ") -> 7.5
A51: 4f | B51: ¿Ha habido algún cambio en la provisión de infraestructura y servicios locales? | D51: Yes | E51: High | F51: Positive impact is very likely | H51: =IFERROR(IF(D51="Yes",(VLOOKUP(E51,Reference!$A$9:$B$11,2,FALSE)*VLOOKUP(F51,Reference!$A$2:$B$7,2,FALSE)*VLOOKUP(D51,Reference!$A$14:$B$15,2,FALSE)),(VLOOKUP(E51,Reference!$A$9:$B$11,2,FALSE)*VLOOKUP(F51,Reference!$A$2:$C$7,3,FALSE)*VLOOKUP(D51,Reference!$A$14:$B$15,2,FALSE)))," ") -> 7.5
A52: 4g | B52: ¿Ha habido algún cambio en la distribución relativa del ingreso, el valor de la propiedad y los beneficios del proyecto (incluido el acceso al agua de riego)? | D52: Yes | E52: High | F52: Positive impact is very likely | H52: =IFERROR(IF(D52="Yes",(VLOOKUP(E52,Reference!$A$9:$B$11,2,FALSE)*VLOOKUP(F52,Reference!$A$2:$B$7,2,FALSE)*VLOOKUP(D52,Reference!$A$14:$B$15,2,FALSE)),(VLOOKUP(E52,Reference!$A$9:$B$11,2,FALSE)*VLOOKUP(F52,Reference!$A$2:$C$7,3,FALSE)*VLOOKUP(D52,Reference!$A$14:$B$15,2,FALSE)))," ") -> 7.5
A53: 5 | B53: Efectos regionales en el país
A54: 5a | B54: ¿Los cambios económicos, infraestructurales, sociales y demográficos asociados con el proyecto tendrán un impacto en el desarrollo regional? | D54: Yes | E54: High | F54: Positive impact is very likely | H54: =IFERROR(IF(D54="Yes",(VLOOKUP(E54,Reference!$A$9:$B$11,2,FALSE)*VLOOKUP(F54,Reference!$A$2:$B$7,2,FALSE)*VLOOKUP(D54,Reference!$A$14:$B$15,2,FALSE)),(VLOOKUP(E54,Reference!$A$9:$B$11,2,FALSE)*VLOOKUP(F54,Reference!$A$2:$C$7,3,FALSE)*VLOOKUP(D54,Reference!$A$14:$B$15,2,FALSE)))," ") -> 7.5
A55: 5b | B55: ¿Se han considerado los impactos en la eficiencia institucional a nivel local y regional? (marco regulatorio, relaciones informales, mecanismos direccionales) | D55: Yes | E55: High | F55: Positive impact is very likely | H55: =IFERROR(IF(D55="Yes",(VLOOKUP(E55,Reference!$A$9:$B$11,2,FALSE)*VLOOKUP(F55,Reference!$A$2:$B$7,2,FALSE)*VLOOKUP(D55,Reference!$A$14:$B$15,2,FALSE)),(VLOOKUP(E55,Reference!$A$9:$B$11,2,FALSE)*VLOOKUP(F55,Reference!$A$2:$C$7,3,FALSE)*VLOOKUP(D55,Reference!$A$14:$B$15,2,FALSE)))," ") -> 7.5
A56: 5c | B56: ¿Se han tenido en cuenta los impactos sobre la viabilidad de las propiedades de la tierra, los derechos de tierra y los derechos de agua? | D56: Yes | E56: High | F56: Positive impact is very likely | H56: =IFERROR(IF(D56="Yes",(VLOOKUP(E56,Reference!$A$9:$B$11,2,FALSE)*VLOOKUP(F56,Reference!$A$2:$B$7,2,FALSE)*VLOOKUP(D56,Reference!$A$14:$B$15,2,FALSE)),(VLOOKUP(E56,Reference!$A$9:$B$11,2,FALSE)*VLOOKUP(F56,Reference!$A$2:$C$7,3,FALSE)*VLOOKUP(D56,Reference!$A$14:$B$15,2,FALSE)))," ") -> 7.5
A57: 5d | B57: ¿Ofrece el proyecto un nivel de vida razonable para las comunidades agrícolas y rurales? | D57: Yes | E57: High | F57: Positive impact is very likely | H57: =IFERROR(IF(D57="Yes",(VLOOKUP(E57,Reference!$A$9:$B$11,2,FALSE)*VLOOKUP(F57,Reference!$A$2:$B$7,2,FALSE)*VLOOKUP(D57,Reference!$A$14:$B$15,2,FALSE)),(VLOOKUP(E57,Reference!$A$9:$B$11,2,FALSE)*VLOOKUP(F57,Reference!$A$2:$C$7,3,FALSE)*VLOOKUP(D57,Reference!$A$14:$B$15,2,FALSE)))," ") -> 7.5
A58: 5e | B58: ¿Contribuye el proyecto a la viabilidad de las áreas rurales / a un patrón equilibrado de desarrollo / al mantenimiento de comunidades rurales dinámicas y activas? | D58: Yes | E58: High | F58: Positive impact is very likely | H58: =IFERROR(IF(D58="Yes",(VLOOKUP(E58,Reference!$A$9:$B$11,2,FALSE)*VLOOKUP(F58,Reference!$A$2:$B$7,2,FALSE)*VLOOKUP(D58,Reference!$A$14:$B$15,2,FALSE)),(VLOOKUP(E58,Reference!$A$9:$B$11,2,FALSE)*VLOOKUP(F58,Reference!$A$2:$C$7,3,FALSE)*VLOOKUP(D58,Reference!$A$14:$B$15,2,FALSE)))," ") -> 7.5
A59: 5f | B59: ¿Existe un impacto positivo para los agricultores de subsistencia y los sistemas agrícolas en el área del proyecto? | D59: Yes | E59: High | F59: Positive impact is very likely | H59: =IFERROR(IF(D59="Yes",(VLOOKUP(E59,Reference!$A$9:$B$11,2,FALSE)*VLOOKUP(F59,Reference!$A$2:$B$7,2,FALSE)*VLOOKUP(D59,Reference!$A$14:$B$15,2,FALSE)),(VLOOKUP(E59,Reference!$A$9:$B$11,2,FALSE)*VLOOKUP(F59,Reference!$A$2:$C$7,3,FALSE)*VLOOKUP(D59,Reference!$A$14:$B$15,2,FALSE)))," ") -> 7.5
A60: 5g | B60: ¿Existe un impacto positivo para los agricultores de subsistencia y los sistemas agrícolas fuera del área del proyecto? | D60: Yes | E60: High | F60: Positive impact is very likely | H60: =IFERROR(IF(D60="Yes",(VLOOKUP(E60,Reference!$A$9:$B$11,2,FALSE)*VLOOKUP(F60,Reference!$A$2:$B$7,2,FALSE)*VLOOKUP(D60,Reference!$A$14:$B$15,2,FALSE)),(VLOOKUP(E60,Reference!$A$9:$B$11,2,FALSE)*VLOOKUP(F60,Reference!$A$2:$C$7,3,FALSE)*VLOOKUP(D60,Reference!$A$14:$B$15,2,FALSE)))," ") -> 7.5
A61: 5h | B61: ¿Se han previsto adecuadamente las nuevas necesidades de transporte, comercialización y procesamiento asociadas al proyecto? | D61: Yes | E61: High | F61: Positive impact is very likely | H61: =IFERROR(IF(D61="Yes",(VLOOKUP(E61,Reference!$A$9:$B$11,2,FALSE)*VLOOKUP(F61,Reference!$A$2:$B$7,2,FALSE)*VLOOKUP(D61,Reference!$A$14:$B$15,2,FALSE)),(VLOOKUP(E61,Reference!$A$9:$B$11,2,FALSE)*VLOOKUP(F61,Reference!$A$2:$C$7,3,FALSE)*VLOOKUP(D61,Reference!$A$14:$B$15,2,FALSE)))," ") -> 7.5
A62: 5i | B62: ¿Se ha tenido en cuenta el impacto en el acceso a sitios de importancia nacional histórica, cultural y religiosa? | D62: Yes | E62: High | F62: Positive impact is very likely | H62: =IFERROR(IF(D62="Yes",(VLOOKUP(E62,Reference!$A$9:$B$11,2,FALSE)*VLOOKUP(F62,Reference!$A$2:$B$7,2,FALSE)*VLOOKUP(D62,Reference!$A$14:$B$15,2,FALSE)),(VLOOKUP(E62,Reference!$A$9:$B$11,2,FALSE)*VLOOKUP(F62,Reference!$A$2:$C$7,3,FALSE)*VLOOKUP(D62,Reference!$A$14:$B$15,2,FALSE)))," ") -> 7.5
A63: 6 | B63: Participación del usario
A64: 6a | B64: ¿Ha habido una participación adecuada de los usuarios en la planificación, implementación y operación del proyecto para garantizar el éxito del proyecto y reducir futuros conflictos? | D64: Yes | E64: High | F64: Positive impact is very likely | H64: =IFERROR(IF(D64="Yes",(VLOOKUP(E64,Reference!$A$9:$B$11,2,FALSE)*VLOOKUP(F64,Reference!$A$2:$B$7,2,FALSE)*VLOOKUP(D64,Reference!$A$14:$B$15,2,FALSE)),(VLOOKUP(E64,Reference!$A$9:$B$11,2,FALSE)*VLOOKUP(F64,Reference!$A$2:$C$7,3,FALSE)*VLOOKUP(D64,Reference!$A$14:$B$15,2,FALSE)))," ") -> 7.5
A65: 6b | B65: ¿Se ha considerado la provisión de instalaciones nuevas o ampliadas para crédito, comercialización, extensión agrícola y capacitación? | D65: Yes | E65: High | F65: Positive impact is very likely | H65: =IFERROR(IF(D65="Yes",(VLOOKUP(E65,Reference!$A$9:$B$11,2,FALSE)*VLOOKUP(F65,Reference!$A$2:$B$7,2,FALSE)*VLOOKUP(D65,Reference!$A$14:$B$15,2,FALSE)),(VLOOKUP(E65,Reference!$A$9:$B$11,2,FALSE)*VLOOKUP(F65,Reference!$A$2:$C$7,3,FALSE)*VLOOKUP(D65,Reference!$A$14:$B$15,2,FALSE)))," ") -> 7.5
A66: 6c | B66: ¿Se han tenido en cuenta adecuadamente las opiniones, las necesidades y las preferencias de los usarios en el diseño y la configuración del sistema? | D66: Yes | E66: High | F66: Positive impact is very likely | H66: =IFERROR(IF(D66="Yes",(VLOOKUP(E66,Reference!$A$9:$B$11,2,FALSE)*VLOOKUP(F66,Reference!$A$2:$B$7,2,FALSE)*VLOOKUP(D66,Reference!$A$14:$B$15,2,FALSE)),(VLOOKUP(E66,Reference!$A$9:$B$11,2,FALSE)*VLOOKUP(F66,Reference!$A$2:$C$7,3,FALSE)*VLOOKUP(D66,Reference!$A$14:$B$15,2,FALSE)))," ") -> 7.5
A67: 6d | B67: ¿Se proporcionará capacitación a la población local? | D67: Yes | E67: High | F67: Positive impact is very likely | H67: =IFERROR(IF(D67="Yes",(VLOOKUP(E67,Reference!$A$9:$B$11,2,FALSE)*VLOOKUP(F67,Reference!$A$2:$B$7,2,FALSE)*VLOOKUP(D67,Reference!$A$14:$B$15,2,FALSE)),(VLOOKUP(E67,Reference!$A$9:$B$11,2,FALSE)*VLOOKUP(F67,Reference!$A$2:$C$7,3,FALSE)*VLOOKUP(D67,Reference!$A$14:$B$15,2,FALSE)))," ") -> 7.5
A68: 6e | B68: ¿Se ha considerado la posibilidad de incorporar los sistemas existentes de tenencia de tierras, el riego tradicional y las estructuras organizativas y sociológicas existentes? | D68: Yes | E68: High | F68: Positive impact is very likely | H68: =IFERROR(IF(D68="Yes",(VLOOKUP(E68,Reference!$A$9:$B$11,2,FALSE)*VLOOKUP(F68,Reference!$A$2:$B$7,2,FALSE)*VLOOKUP(D68,Reference!$A$14:$B$15,2,FALSE)),(VLOOKUP(E68,Reference!$A$9:$B$11,2,FALSE)*VLOOKUP(F68,Reference!$A$2:$C$7,3,FALSE)*VLOOKUP(D68,Reference!$A$14:$B$15,2,FALSE)))," ") -> 7.5
A69: 7 | B69: Recursos naturales y medio ambiente
A70: 7a | B70: ¿Se ha considerado el impacto de un aumento de la evapotranspiración? | D70: Yes | E70: High | F70: Positive impact is very likely | H70: =IFERROR(IF(D70="Yes",(VLOOKUP(E70,Reference!$A$9:$B$11,2,FALSE)*VLOOKUP(F70,Reference!$A$2:$B$7,2,FALSE)*VLOOKUP(D70,Reference!$A$14:$B$15,2,FALSE)),(VLOOKUP(E70,Reference!$A$9:$B$11,2,FALSE)*VLOOKUP(F70,Reference!$A$2:$C$7,3,FALSE)*VLOOKUP(D70,Reference!$A$14:$B$15,2,FALSE)))," ") -> 7.5
A71: 7b | B71: ¿Establece el proyecto el uso del agua dentro de los límites de extracción sostenibles? | D71: Yes | E71: High | F71: Positive impact is very likely | H71: =IFERROR(IF(D71="Yes",(VLOOKUP(E71,Reference!$A$9:$B$11,2,FALSE)*VLOOKUP(F71,Reference!$A$2:$B$7,2,FALSE)*VLOOKUP(D71,Reference!$A$14:$B$15,2,FALSE)),(VLOOKUP(E71,Reference!$A$9:$B$11,2,FALSE)*VLOOKUP(F71,Reference!$A$2:$C$7,3,FALSE)*VLOOKUP(D71,Reference!$A$14:$B$15,2,FALSE)))," ") -> 7.5
A72: 7c | B72: ¿Se ha considerado la disponibilidad de agua subterránea mediante el secado de pozos de agua potable y riego? | D72: Yes | E72: High | F72: Positive impact is very likely | H72: =IFERROR(IF(D72="Yes",(VLOOKUP(E72,Reference!$A$9:$B$11,2,FALSE)*VLOOKUP(F72,Reference!$A$2:$B$7,2,FALSE)*VLOOKUP(D72,Reference!$A$14:$B$15,2,FALSE)),(VLOOKUP(E72,Reference!$A$9:$B$11,2,FALSE)*VLOOKUP(F72,Reference!$A$2:$C$7,3,FALSE)*VLOOKUP(D72,Reference!$A$14:$B$15,2,FALSE)))," ") -> 7.5
A73: 7d | B73: ¿Se ha considerado la intrusión salina en las aguas subterráneas a lo largo de las regiones costeras? | D73: Yes | E73: High | F73: Positive impact is very likely | H73: =IFERROR(IF(D73="Yes",(VLOOKUP(E73,Reference!$A$9:$B$11,2,FALSE)*VLOOKUP(F73,Reference!$A$2:$B$7,2,FALSE)*VLOOKUP(D73,Reference!$A$14:$B$15,2,FALSE)),(VLOOKUP(E73,Reference!$A$9:$B$11,2,FALSE)*VLOOKUP(F73,Reference!$A$2:$C$7,3,FALSE)*VLOOKUP(D73,Reference!$A$14:$B$15,2,FALSE)))," ") -> 7.5
A74: 7e | B74: ¿Se han evaluado los flujos base reducidos en la disponibilidad de agua subterránea? | D74: Yes | E74: High | F74: Positive impact is very likely | H74: =IFERROR(IF(D74="Yes",(VLOOKUP(E74,Reference!$A$9:$B$11,2,FALSE)*VLOOKUP(F74,Reference!$A$2:$B$7,2,FALSE)*VLOOKUP(D74,Reference!$A$14:$B$15,2,FALSE)),(VLOOKUP(E74,Reference!$A$9:$B$11,2,FALSE)*VLOOKUP(F74,Reference!$A$2:$C$7,3,FALSE)*VLOOKUP(D74,Reference!$A$14:$B$15,2,FALSE)))," ") -> 7.5
A75: 7f | B75: ¿Se ha considerado el impacto en las descargas del río, río abajo del área del proyecto? | D75: Yes | E75: High | F75: Positive impact is very likely | H75: =IFERROR(IF(D75="Yes",(VLOOKUP(E75,Reference!$A$9:$B$11,2,FALSE)*VLOOKUP(F75,Reference!$A$2:$B$7,2,FALSE)*VLOOKUP(D75,Reference!$A$14:$B$15,2,FALSE)),(VLOOKUP(E75,Reference!$A$9:$B$11,2,FALSE)*VLOOKUP(F75,Reference!$A$2:$C$7,3,FALSE)*VLOOKUP(D75,Reference!$A$14:$B$15,2,FALSE)))," ") -> 7.5
A76: 7g | B76: ¿Se ha considerado el impacto en la calidad del agua a través de una reducción en la calidad del agua de riego y la lixiviación? | D76: Yes | E76: High | F76: Positive impact is very likely | H76: =IFERROR(IF(D76="Yes",(VLOOKUP(E76,Reference!$A$9:$B$11,2,FALSE)*VLOOKUP(F76,Reference!$A$2:$B$7,2,FALSE)*VLOOKUP(D76,Reference!$A$14:$B$15,2,FALSE)),(VLOOKUP(E76,Reference!$A$9:$B$11,2,FALSE)*VLOOKUP(F76,Reference!$A$2:$C$7,3,FALSE)*VLOOKUP(D76,Reference!$A$14:$B$15,2,FALSE)))," ") -> 7.5
A77: 7h | B77: ¿Se ha considerado el impacto en los problemas de calidad del agua para los usuarios río abajo por la mala calidad del flujo de retorno de riego? | D77: Yes | E77: High | F77: Positive impact is very likely | H77: =IFERROR(IF(D77="Yes",(VLOOKUP(E77,Reference!$A$9:$B$11,2,FALSE)*VLOOKUP(F77,Reference!$A$2:$B$7,2,FALSE)*VLOOKUP(D77,Reference!$A$14:$B$15,2,FALSE)),(VLOOKUP(E77,Reference!$A$9:$B$11,2,FALSE)*VLOOKUP(F77,Reference!$A$2:$C$7,3,FALSE)*VLOOKUP(D77,Reference!$A$14:$B$15,2,FALSE)))," ") -> 7.5
A78: 7i | B78: ¿Se ha evaluado el impacto en la degradación de la tierra a través de la salinización? | D78: Yes | E78: High | F78: Positive impact is very likely | H78: =IFERROR(IF(D78="Yes",(VLOOKUP(E78,Reference!$A$9:$B$11,2,FALSE)*VLOOKUP(F78,Reference!$A$2:$B$7,2,FALSE)*VLOOKUP(D78,Reference!$A$14:$B$15,2,FALSE)),(VLOOKUP(E78,Reference!$A$9:$B$11,2,FALSE)*VLOOKUP(F78,Reference!$A$2:$C$7,3,FALSE)*VLOOKUP(D78,Reference!$A$14:$B$15,2,FALSE)))," ") -> 7.5
A79: 7j | B79: ¿Se ha considerado el impacto sobre la degradación de la tierra mediante alcalinización? | D79: Yes | E79: High | F79: Positive impact is very likely | H79: =IFERROR(IF(D79="Yes",(VLOOKUP(E79,Reference!$A$9:$B$11,2,FALSE)*VLOOKUP(F79,Reference!$A$2:$B$7,2,FALSE)*VLOOKUP(D79,Reference!$A$14:$B$15,2,FALSE)),(VLOOKUP(E79,Reference!$A$9:$B$11,2,FALSE)*VLOOKUP(F79,Reference!$A$2:$C$7,3,FALSE)*VLOOKUP(D79,Reference!$A$14:$B$15,2,FALSE)))," ") -> 7.5
A80: 7k | B80: ¿Se ha considerado la degradación de la tierra a través del aumento de la recarga de agua subterránea, el encharcamiento y los problemas de drenaje? | D80: Yes | E80: High | F80: Positive impact is very likely | H80: =IFERROR(IF(D80="Yes",(VLOOKUP(E80,Reference!$A$9:$B$11,2,FALSE)*VLOOKUP(F80,Reference!$A$2:$B$7,2,FALSE)*VLOOKUP(D80,Reference!$A$14:$B$15,2,FALSE)),(VLOOKUP(E80,Reference!$A$9:$B$11,2,FALSE)*VLOOKUP(F80,Reference!$A$2:$C$7,3,FALSE)*VLOOKUP(D80,Reference!$A$14:$B$15,2,FALSE)))," ") -> 7.5
A81: 7l | B81: ¿Se ha considerado el impacto del proyecto en la degradación de la tierra a través de la acidificación del suelo? | D81: Yes | E81: High | F81: Positive impact is very likely | H81: =IFERROR(IF(D81="Yes",(VLOOKUP(E81,Reference!$A$9:$B$11,2,FALSE)*VLOOKUP(F81,Reference!$A$2:$B$7,2,FALSE)*VLOOKUP(D81,Reference!$A$14:$B$15,2,FALSE)),(VLOOKUP(E81,Reference!$A$9:$B$11,2,FALSE)*VLOOKUP(F81,Reference!$A$2:$C$7,3,FALSE)*VLOOKUP(D81,Reference!$A$14:$B$15,2,FALSE)))," ") -> 7.5
A82: 7m | B82: ¿Se ha considerado el impacto del proyecto en la degradación de la tierra a través de la compactación del suelo? | D82: Yes | E82: High | F82: Positive impact is very likely | H82: =IFERROR(IF(D82="Yes",(VLOOKUP(E82,Reference!$A$9:$B$11,2,FALSE)*VLOOKUP(F82,Reference!$A$2:$B$7,2,FALSE)*VLOOKUP(D82,Reference!$A$14:$B$15,2,FALSE)),(VLOOKUP(E82,Reference!$A$9:$B$11,2,FALSE)*VLOOKUP(F82,Reference!$A$2:$C$7,3,FALSE)*VLOOKUP(D82,Reference!$A$14:$B$15,2,FALSE)))," ") -> 7.5
A83: 7n | B83: ¿Se ha considerado el impacto sobre la degradación de la tierra a través de la erosión del suelo? | D83: Yes | E83: High | F83: Positive impact is very likely | H83: =IFERROR(IF(D83="Yes",(VLOOKUP(E83,Reference!$A$9:$B$11,2,FALSE)*VLOOKUP(F83,Reference!$A$2:$B$7,2,FALSE)*VLOOKUP(D83,Reference!$A$14:$B$15,2,FALSE)),(VLOOKUP(E83,Reference!$A$9:$B$11,2,FALSE)*VLOOKUP(F83,Reference!$A$2:$C$7,3,FALSE)*VLOOKUP(D83,Reference!$A$14:$B$15,2,FALSE)))," ") -> 7.5
A84: 7o | B84: ¿Incluye el proyecto el uso de fuentes de agua no convencionales (es decir, aguas residuales)? | D84: Yes | E84: High | F84: Positive impact is very likely | H84: =IFERROR(IF(D84="Yes",(VLOOKUP(E84,Reference!$A$9:$B$11,2,FALSE)*VLOOKUP(F84,Reference!$A$2:$B$7,2,FALSE)*VLOOKUP(D84,Reference!$A$14:$B$15,2,FALSE)),(VLOOKUP(E84,Reference!$A$9:$B$11,2,FALSE)*VLOOKUP(F84,Reference!$A$2:$C$7,3,FALSE)*VLOOKUP(D84,Reference!$A$14:$B$15,2,FALSE)))," ") -> 7.5
A85: 7p | B85: ¿Se ha considerado el impacto de una presa? | D85: Yes | E85: High | F85: Positive impact is very likely | H85: =IFERROR(IF(D85="Yes",(VLOOKUP(E85,Reference!$A$9:$B$11,2,FALSE)*VLOOKUP(F85,Reference!$A$2:$B$7,2,FALSE)*VLOOKUP(D85,Reference!$A$14:$B$15,2,FALSE)),(VLOOKUP(E85,Reference!$A$9:$B$11,2,FALSE)*VLOOKUP(F85,Reference!$A$2:$C$7,3,FALSE)*VLOOKUP(D85,Reference!$A$14:$B$15,2,FALSE)))," ") -> 7.5
A86: 7q | B86: ¿Se ha tenido en cuenta el impacto del proyecto en los sistemas ecológicos (biodiversidad en las áreas de regadío y alrededores o en las áreas río abajo)? | D86: Yes | E86: High | F86: Positive impact is very likely | H86: =IFERROR(IF(D86="Yes",(VLOOKUP(E86,Reference!$A$9:$B$11,2,FALSE)*VLOOKUP(F86,Reference!$A$2:$B$7,2,FALSE)*VLOOKUP(D86,Reference!$A$14:$B$15,2,FALSE)),(VLOOKUP(E86,Reference!$A$9:$B$11,2,FALSE)*VLOOKUP(F86,Reference!$A$2:$C$7,3,FALSE)*VLOOKUP(D86,Reference!$A$14:$B$15,2,FALSE)))," ") -> 7.5
A87: 7r | B87: ¿Se han considerado los impactos en la salud humana a través de una mayor incidencia de enfermedades relacionadas con el agua? | D87: Yes | E87: High | F87: Positive impact is very likely | H87: =IFERROR(IF(D87="Yes",(VLOOKUP(E87,Reference!$A$9:$B$11,2,FALSE)*VLOOKUP(F87,Reference!$A$2:$B$7,2,FALSE)*VLOOKUP(D87,Reference!$A$14:$B$15,2,FALSE)),(VLOOKUP(E87,Reference!$A$9:$B$11,2,FALSE)*VLOOKUP(F87,Reference!$A$2:$C$7,3,FALSE)*VLOOKUP(D87,Reference!$A$14:$B$15,2,FALSE)))," ") -> 7.5
A88: 7s | B88: ¿Existe un sistema de recolección de desechos sólidos en el área del proyecto? | D88: Yes | E88: High | F88: Positive impact is very likely | H88: =IFERROR(IF(D88="Yes",(VLOOKUP(E88,Reference!$A$9:$B$11,2,FALSE)*VLOOKUP(F88,Reference!$A$2:$B$7,2,FALSE)*VLOOKUP(D88,Reference!$A$14:$B$15,2,FALSE)),(VLOOKUP(E88,Reference!$A$9:$B$11,2,FALSE)*VLOOKUP(F88,Reference!$A$2:$C$7,3,FALSE)*VLOOKUP(D88,Reference!$A$14:$B$15,2,FALSE)))," ") -> 7.5
A89: 7t | B89: ¿Existe un sistema de recolección de desechos eléctricos y electrónicos (paneles solares, controladores de carga, inversores, cables ...) en el área del proyecto? | D89: Yes | E89: High | F89: Positive impact is very likely | H89: =IFERROR(IF(D89="Yes",(VLOOKUP(E89,Reference!$A$9:$B$11,2,FALSE)*VLOOKUP(F89,Reference!$A$2:$B$7,2,FALSE)*VLOOKUP(D89,Reference!$A$14:$B$15,2,FALSE)),(VLOOKUP(E89,Reference!$A$9:$B$11,2,FALSE)*VLOOKUP(F89,Reference!$A$2:$C$7,3,FALSE)*VLOOKUP(D89,Reference!$A$14:$B$15,2,FALSE)))," ") -> 7.5
A90: 7u | B90: ¿Existe un sistema de recolección de baterías en el área del proyecto? | D90: Yes | E90: High | F90: Positive impact is very likely | H90: =IFERROR(IF(D90="Yes",(VLOOKUP(E90,Reference!$A$9:$B$11,2,FALSE)*VLOOKUP(F90,Reference!$A$2:$B$7,2,FALSE)*VLOOKUP(D90,Reference!$A$14:$B$15,2,FALSE)),(VLOOKUP(E90,Reference!$A$9:$B$11,2,FALSE)*VLOOKUP(F90,Reference!$A$2:$C$7,3,FALSE)*VLOOKUP(D90,Reference!$A$14:$B$15,2,FALSE)))," ") -> 7.5
A91: 7v | B91: ¿Se ha considerado una mayor exposición a sustancias tóxicas (pesticidas, líquidos de baterías, fertilizantes, productos químicos, etc.)? | D91: Yes | E91: High | F91: Positive impact is very likely | H91: =IFERROR(IF(D91="Yes",(VLOOKUP(E91,Reference!$A$9:$B$11,2,FALSE)*VLOOKUP(F91,Reference!$A$2:$B$7,2,FALSE)*VLOOKUP(D91,Reference!$A$14:$B$15,2,FALSE)),(VLOOKUP(E91,Reference!$A$9:$B$11,2,FALSE)*VLOOKUP(F91,Reference!$A$2:$C$7,3,FALSE)*VLOOKUP(D91,Reference!$A$14:$B$15,2,FALSE)))," ") -> 7.5
A92: 7w | B92: ¿Existe un sistema de recolección para recolectar plásticos agrícolas (tuberías, reservorios, mantillo, túneles, invernaderos, ensilajes, cajas, accesorios, redes, goteros ...) en el área del proyecto? | D92: Yes | E92: High | F92: Positive impact is very likely | H92: =IFERROR(IF(D92="Yes",(VLOOKUP(E92,Reference!$A$9:$B$11,2,FALSE)*VLOOKUP(F92,Reference!$A$2:$B$7,2,FALSE)*VLOOKUP(D92,Reference!$A$14:$B$15,2,FALSE)),(VLOOKUP(E92,Reference!$A$9:$B$11,2,FALSE)*VLOOKUP(F92,Reference!$A$2:$C$7,3,FALSE)*VLOOKUP(D92,Reference!$A$14:$B$15,2,FALSE)))," ") -> 7.5

Sheet ENTRADA - Datos
A1: PROMUEVE – Herramienta de evaluación de impacto
A2: DATOS SOCIOECONÓMICOS
A3: Ref # | B3: Pregunta | C3: NÚMERO ABSOLUTO | D3: PORCENTAJE [%] | E3: COMMENTARIOS DEL USARIO | F3: COMMENTARIOS DEL REVISOR DEL PROYECTO
A4: A1.0 | B4: ¿Cuál es la población en las proximidades del proyecto?
A5: A1.1 | B5: ¿Cuántas personas serán afectadas por el proyecto? | D5: =IFERROR(C5/C4,"-") -> -
A6: A1.2 | B6: ¿Cuántos agricultores serán afectados por el proyecto? | D6: =IFERROR(C6/C5,"-") -> -
B7: TOTAL | C7: =SUM(C5:C6) -> 0 | D7: =C7/C4 -> 
A8: A2.0 | B8: ¿Cuál es el desglose de la población de agricultores beneficiados por el proyecto en categorías de género, clase socioeconómica e ingresos?
A9: A2.1 | B9: Hombre | D9: =IFERROR(C9/(C9+C10),"-") -> -
A10: A2.2 | B10: Mujer | D10: =IFERROR(C10/(C9+C10),"-") -> -
B11: TOTAL | C11: =SUM(C9:C10) -> 0 | D11: =C11/C6 -> 
A12: A2.3 | B12: Strata 1: _____ | D12: =IFERROR(C12/($C$12+$C$13+$C$14+$C$15),"-") -> -
A13: A2.4 | B13: Strata 2:_____ | D13: =IFERROR(C13/($C$12+$C$13+$C$14+$C$15),"-") -> -
A14: A2.5 | B14: Strata 3:_____ | D14: =IFERROR(C14/($C$12+$C$13+$C$14+$C$15),"-") -> -
A15: A2.6 | B15: Strata 4:_____ | D15: =IFERROR(C15/($C$12+$C$13+$C$14+$C$15),"-") -> -
B16: TOTAL | C16: =SUM(C12:C15) -> 0 | D16: =C16/C6 -> 
A17: A2.7 | B17: Desempleados | D17: =IFERROR(C17/(C9+C10),"-") -> -
A18: A2.8 | B18: Debajo de la línea de pobreza | D18: =IFERROR(C18/(C9+C10),"-") -> -
B19: TOTAL | C19: =SUM(C17:C18) -> 0 | D19: =C19/C11 -> 
A20: A3.0 | B20: ¿De dónde se han contratados los agricultores beneficiados?
A21: A3.1 | B21: Local en en pueblo | D21: =IFERROR(C21/($C$21+$C$22+$C$23+$C$24),"-") -> -
A22: A3.2 | B22: Local reasentada | D22: =IFERROR(C22/($C$21+$C$22+$C$23+$C$24),"-") -> -
A23: A3.3 | B23: Fondo sociológico igual de otro lado | D23: =IFERROR(C23/($C$21+$C$22+$C$23+$C$24),"-") -> -
A24: A3.4 | B24: Fondo sociológico diferente | D24: =IFERROR(C24/($C$21+$C$22+$C$23+$C$24),"-") -> -
B25: TOTAL | C25: =SUM(C21:C24) -> 0 | D25: =C25/C6 -> 
A26: A4.0 | B26: ¿Cuáles son los requisitos laborales del proyecto?
A27: A4.1 | B27: Trabajo familiar | D27: =IFERROR(C27/($C$27+$C$28+$C$29+$C$30),"-") -> -
A28: A4.2 | B28: Trabajo local | D28: =IFERROR(C28/($C$27+$C$28+$C$29+$C$30),"-") -> -
A29: A4.3 | B29: Trabajo estacional | D29: =IFERROR(C29/($C$27+$C$28+$C$29+$C$30),"-") -> -
A30: A4.4 | B30: Trabajo estacional desde lejos | D30: =IFERROR(C30/($C$27+$C$28+$C$29+$C$30),"-") -> -
B31: TOTAL | C31: =SUM(C27:C30) -> 0 | D31: =C31/C6 -> 
A32: A5.0 | B32: ¿Cuántas personas pierden los medios tradicionales de subsistencia (no los que están en el proyecto)? | D32: por año
A34: A6.0 | B34: ¿Cuántos empleos son creados por el proyecto? | D34: por año
A35: A6.1 | B35: ¿Cuántos años se espera que duren? | D35: años
A37: A7.0 | B37: ¿Cuáles son las cifras estimadas de crecimiento de la población durante la vida de los activos? | D37: %
A38: A7.1 | B38: ¿Cuál es la proporción estimada de migrantes debido al proyecto durante la vida útil de los activos? | D38: %
A40: A8.0 | B40: ¿Cuál es el desglose de la tenencia de los agricultores?
A41: A8.1 | B41: Terrateniente | D41: =IFERROR(C41/($C$41+$C$42+$C$43+$C$44),"-") -> -
A42: A8.2 | B42: Arrendatario agrícola | D42: =IFERROR(C42/($C$41+$C$42+$C$43+$C$44),"-") -> -
A43: A8.3 | B43: Arrendatario agrícola en tierra de gobierno | D43: =IFERROR(C43/($C$41+$C$42+$C$43+$C$44),"-") -> -
A44: A8.4 | B44: Trabajador / Obrero | D44: =IFERROR(C44/($C$41+$C$42+$C$43+$C$44),"-") -> -
B45: TOTAL | C45: =SUM(C41:C44) -> 0 | D45: =C45/C6 -> 

Sheet SALIDA - Gráficos
B1: PROMUEVE – Herramienta de evaluación de impacto
A4: Nombre del proyecto: | B4: ='ENTRADA - Lista de verificación'!G4 -> sample | H4: Fecha de la evaluación de impacto | M4: ='ENTRADA - Lista de verificación'!G7 -> 0
A5: Ubicación del proyecto: | B5: ='ENTRADA - Lista de verificación'!G5 -> 0 | H5: Duración del proyecto (años) | M5: ='ENTRADA - Lista de verificación'!G8 -> 0
A6: Nombre del usario: | B6: ='ENTRADA - Lista de verificación'!G6 -> 0 | H6: Vida útil del activo (años) | M6: ='ENTRADA - Lista de verificación'!G9 -> 0
B11: Lowest score possible | C11: Highest possible score | D11: Actual Score | E11: correction factor | F11: % Reached
A12: ='ENTRADA - Lista de verificación'!C4 -> Cambio de población y migración | B12: =0-C12 -> -52.5 | C12: =COUNTA('ENTRADA - Lista de verificación'!A16:A22)*7.5 -> 52.5 | D12: ='ENTRADA - Lista de verificación'!D4 -> 52.5 | E12: =120/C12 -> 2.285714286 | F12: =(E12*'ENTRADA - Lista de verificación'!D4)/120 -> 1
A13: ='ENTRADA - Lista de verificación'!C5 -> Papel de la mujer | B13: =0-C13 -> -105 | C13: =COUNTA('ENTRADA - Lista de verificación'!A24:A37)*7.5 -> 105 | D13: ='ENTRADA - Lista de verificación'!D5 -> 105 | E13: =120/C13 -> 1.142857143 | F13: =(E13*'ENTRADA - Lista de verificación'!D5)/120 -> 1
A14: ='ENTRADA - Lista de verificación'!C6 -> Grupos minoritarios e indígenas | B14: -45 | C14: =COUNTA('ENTRADA - Lista de verificación'!A39:A44)*7.5 -> 45 | D14: ='ENTRADA - Lista de verificación'!D6 -> 45 | E14: 2.666666667 | F14: =(E14*'ENTRADA - Lista de verificación'!D6)/120 -> 1
A15: ='ENTRADA - Lista de verificación'!C7 -> Ingresos y servicios | B15: -52.5 | C15: =COUNTA('ENTRADA - Lista de verificación'!A46:A52)*7.5 -> 52.5 | D15: ='ENTRADA - Lista de verificación'!D7 -> 52.5 | E15: 2.285714286 | F15: =(E15*'ENTRADA - Lista de verificación'!D7)/120 -> 1
A16: ='ENTRADA - Lista de verificación'!C8 -> Efectos regionales en el país | B16: -67.5 | C16: =COUNTA('ENTRADA - Lista de verificación'!A54:A62)*7.5 -> 67.5 | D16: ='ENTRADA - Lista de verificación'!D8 -> 67.5 | E16: 1.777777778 | F16: =(E16*'ENTRADA - Lista de verificación'!D8)/120 -> 1
A17: ='ENTRADA - Lista de verificación'!C9 -> Participación del usario | B17: -37.5 | C17: =COUNTA('ENTRADA - Lista de verificación'!A64:A68)*7.5 -> 37.5 | D17: ='ENTRADA - Lista de verificación'!D9 -> 37.5 | E17: 3.2 | F17: =(E17*'ENTRADA - Lista de verificación'!D9)/120 -> 1
A18: ='ENTRADA - Lista de verificación'!C10 -> Recursos naturales y medio ambiente | B18: -172.5 | C18: =COUNTA('ENTRADA - Lista de verificación'!A70:A92)*7.5 -> 172.5 | D18: ='ENTRADA - Lista de verificación'!D10 -> 172.5 | E18: =120/C18 -> 0.6956521739 | F18: =(E18*'ENTRADA - Lista de verificación'!D10)/120 -> 1
A22: Gender and Socioeconomic Spread of Project Beneficiaries
A24: ='ENTRADA - Datos'!B9 -> Hombre | B24: ='ENTRADA - Datos'!D9 -> -
A25: ='ENTRADA - Datos'!B10 -> Mujer | B25: ='ENTRADA - Datos'!D10 -> -
A26: ='ENTRADA - Datos'!B12 -> Strata 1: _____ | B26: ='ENTRADA - Datos'!D12 -> -
A27: ='ENTRADA - Datos'!B13 -> Strata 2:_____ | B27: ='ENTRADA - Datos'!D13 -> -
A28: ='ENTRADA - Datos'!B14 -> Strata 3:_____ | B28: ='ENTRADA - Datos'!D14 -> -
A29: ='ENTRADA - Datos'!B15 -> Strata 4:_____ | B29: ='ENTRADA - Datos'!D15 -> -
A30: ='ENTRADA - Datos'!B41 -> Terrateniente | B30: ='ENTRADA - Datos'!D41 -> -
A31: ='ENTRADA - Datos'!B42 -> Arrendatario agrícola | B31: ='ENTRADA - Datos'!D42 -> -
A32: ='ENTRADA - Datos'!B43 -> Arrendatario agrícola en tierra de gobierno | B32: ='ENTRADA - Datos'!D43 -> -
A33: ='ENTRADA - Datos'!B44 -> Trabajador / Obrero | B33: ='ENTRADA - Datos'!D44 -> -

Sheet Traducción
B1: English | F1: Français | J1: Español
B3: Sheet: INPUT-Checklist | J3: Hoja: Entrada - Lista de verificación
B5: Yes | J5: Si
B6: No | J6: No
B7: High | J7: Alto
B8: Medium | J8: Medio
B9: Low | J9: Bajo
B10: Positive impact is very likely | J10: Impacto positivo es muy probable
B11: Positive impact possible | J11: Impacto positivo es posible
B12: No impact likely | J12: Probablemente sin impacto
B13: Negative impact possible | J13: Impacto negativo posible
B14: Negative impact very possible | J14: Impacto negativo muy posible

Sheet VERSION CONTROL (hidden)
D10: Tranlsation of ICID Checklist for Socioeconomic perspectives for SPIS projects
C14: Created By | E14: Alqayam Meghji
C15: Checked By | E15: Lucie Pluschke
C16: Reviewed By
B18: Date | C18: Rev: | D18: Comments
B19: 19/03/18 | C19: 0.1 | D19: Draft for review
B20: 23/03/18 | C20: 0.2 | D20: Inclusion of equity and efficieny
B21: 28/03/18 | C21: 0.3 | D21: Inclusion of environmental considerations and conditional formatting
B22: 29/03/18 | C22: 0.4 | D22: Changes made after review with Lucie Plushke

Sheet Reference (hidden)
A1: Impact | B1: Score YES | C1: Score NO
A2: Positive impact is very likely | B2: 5 | C2: 1
A3: Positive impact possible | B3: 2 | C3: 1
A4: No impact likely | B4: 1 | C4: 1
A5: Negative impact possible | B5: -2 | C5: 4
A6: Negative impact very likely | B6: -5 | C6: 5
A8: Weighting | B8: Linear Multiplier
A9: High | B9: 1.5
A10: Medium | B10: 1
A11: Low | B11: 0.5
A13: Weighting | B13: Linear Multiplier
A14: Yes | B14: 1
A15: No | B15: -1
A17: Questions
A18: https://ec.europa.eu/agriculture/publi/reports/sustain/index_en.pdf
A25: Agroecology | B25: http://www.fao.org/agroecology/knowledge/10-elements/en/
A27: Questions not included:
A28: Optimum utilisation of the factors of production, in particular labour, increase of agricultural productivity
A29: Assurance of the availability of supplies
